Cogmind - Beta 15 @@@ ROGUE MODE // 2025.09.04 @ 14:00:26 Player: shapeshifter Result: Destroyed by 99-TNT with 99-TNT's Nukerbomber Performance ------------- Evolutions (1) 500 Regions Visited (6) 1200 Robots Destroyed (42) 210 Value Destroyed (1096) 1096 Prototype IDs (27) 540 Alien Tech Used (0) 0 Bonus (300) 300 TOTAL SCORE: 3846 Bonus ------- Aligned with FarCom 300 Cogmind --------- Core Integrity 0/400 Matter 204/300 Energy 94/100 System Corruption 3% Temperature Cool (53) Movement Treading (225) Ox1 Location -8/Mines Parts ------- > --- POWER (1) -------- (None) > --- PROPULSION (2) --- Advanced Treads Advanced Treads > --- UTILITY (3) ------ High-capacity Storage Unit Core Shielding Light Armor Plating > --- WEAPON (3) ------- Autogun Autogun Autogun > --- INVENTORY (20) --- Light Treads Light Treads Advanced Myomer Leg Experimental Heat Sink Superbattery (1500) Advanced Weapon Cycler Core Shielding 8R-AWN's Armor/EX Supersonic Drone Bay (1/1) Improved Assault Rifle Improved Assault Rifle Improved Assault Rifle 8R-AWN's Boregun Rocket Launcher Plasma Cutter Deploy-a-Sentry Deploy-a-Sentry Deploy-a-Sentry Peak State ------------ > --- POWER ------------ (None) > --- PROPULSION ------- Advanced Treads Advanced Treads > --- UTILITY ---------- High-capacity Storage Unit Core Shielding Light Armor Plating > --- WEAPON ----------- Autogun Autogun 8R-AWN's Boregun > --- INVENTORY -------- Light Treads Light Treads Light Treads Advanced Treads Advanced Myomer Leg Experimental Heat Sink Superbattery Advanced Weapon Cycler Core Shielding Core Shielding Light Armor Plating 8R-AWN's Armor/EX Autogun Improved Assault Rifle Improved Assault Rifle Improved Assault Rifle Rocket Launcher Plasma Cutter [Rating: 31] Favorites ----------- Power Ion Engine Engine Ion Engine Propulsion Advanced Treads Treads Advanced Treads Leg Advanced Myomer Leg Utility High-capacity Storage Unit Device Seismic Detector Storage High-capacity Storage Unit Protection Core Shielding Weapon Assault Rifle Ballistic Gun Assault Rifle Launcher Rocket Launcher Build | -11 -10 -10 -9 -9 -9 -8 ------- Run | Yrd Mat Min Mat Min Exi Min Slots Evolved 2 | . . . 2 . . . Power . | . . . . . . . Propulsion . | . . . . . . . Utility 1 | . . . 1 . . . Weapon 1 | . . . 1 . . . Parts Attached 50 | 7 . . 27 . 16 . Power 5 | 1 . . 4 . . . Engine 5 | 1 . . 4 . . . Core . | . . . . . . . Reactor . | . . . . . . . Propulsion 12 | 2 . . 7 . 3 . Treads 11 | 2 . . 7 . 2 . Leg 1 | . . . . . 1 . Wheel . | . . . . . . . Hover . | . . . . . . . Flight . | . . . . . . . Utility 13 | 2 . . 7 . 4 . Device 1 | 1 . . . . . . Storage 3 | 1 . . 2 . . . Processor . | . . . . . . . Hackware . | . . . . . . . Protection 9 | . . . 5 . 4 . Artifact . | . . . . . . . Weapon 20 | 2 . . 9 . 9 . Energy Gun . | . . . . . . . Energy Cannon . | . . . . . . . Ballistic Gun 19 | 2 . . 9 . 8 . Ballistic Cannon . | . . . . . . . Launcher 1 | . . . . . 1 . Special Weapon . | . . . . . . . Impact Weapon . | . . . . . . . Slashing Weapon . | . . . . . . . Piercing Weapon . | . . . . . . . Special Melee Weapon . | . . . . . . . Unidentified Prototypes 4 | . . . 2 . 2 . Parts Lost 10 | . . . 5 . 5 . Power 2 | . . . 1 . 1 . Propulsion 2 | . . . 1 . 1 . Utility 3 | . . . . . 3 . Weapon 3 | . . . 3 . . . Highest Loss Streak 3 | . . . 3 . 2 . To Critical Strikes 1 | . . . . . 1 . Average Backups 14 | 2 5 8 12 20 17 15 Power . | . 1 1 . . . . Propulsion 3 | 1 2 2 1 5 4 3 Utility 5 | . 1 4 5 6 6 6 Weapon 4 | . . 1 5 8 4 5 Tool/Special . | . . . . . . . Unused Backups 26 | . . . 10 . 7 9 Power 3 | . . . . . 3 . Propulsion 6 | . . . 3 . 1 2 Utility 12 | . . . 3 . 3 6 Weapon 4 | . . . 4 . . . Tool/Special 1 | . . . . . . 1 Average Slot Usage (%) 81 | . 100 100 88 100 70 88 Engine 7 | . 14 14 3 11 9 . Treads 22 | . 28 28 21 22 22 22 Device 4 | . 14 14 6 . . . Storage 11 | . 14 14 11 11 11 11 Protection 17 | . . . 15 22 21 22 Ballistic Gun 18 | . 28 28 30 33 5 33 Peak Build Rating 31 | 7 7 7 25 23 31 26 Average Rating 13 | 5 7 7 12 23 16 26 On Entrance 13 | . 7 7 7 23 23 26 Naked Turns . | . . . . . . . Heaviest Build 63 | 15 15 15 62 62 63 53 Greatest Support 44 | 40 40 40 44 44 44 44 Greatest Overweight (x) 2 | . . . 2 1 1 1 Average Overweight (x) . | . . . . 1 1 1 Largest Inventory Capacity 20 | 8 8 8 20 20 20 20 Average Capacity 17 | 7 8 8 17 20 20 20 Most Carried 20 | 4 8 8 20 20 20 20 Average Carried 14 | 2 5 8 13 20 18 20 Final Capacity 20 | 8 8 8 20 20 20 20 Final Carried 20 | 3 8 8 20 20 20 20 Class Distribution -------------------- 57% | Mutant 26% | Tank 14% | Scavenger-Tank Dominant Class ---------------- Mutant | -10/Materials Mutant | -10/Mines Tank | -9/Materials Tank | -9/Mines Mutant | -9/Exiles Tank | -8/Mines Resources | -11 -10 -10 -9 -9 -9 -8 ----------- Run | Yrd Mat Min Mat Min Exi Min Matter Collected 2223 | 282 69 . 1030 . 842 . Remotely . | . . . . . . . Salvage Created 1752 | 81 74 . 1297 . 126 174 Parts 99 | 4 5 . 78 . 5 7 Haulers Intercepted 5 | . . . 5 . . . Recyclers Shooed 1 | . . . 1 . . . Parts Field Recycled . | . . . . . . . Retrieved Matter . | . . . . . . . Parts Self-Destructed . | . . . . . . . Prevented . | . . . . . . . Kills | -11 -10 -10 -9 -9 -9 -8 ------- Run | Yrd Mat Min Mat Min Exi Min Combat Hostiles Destroyed 33 | . 2 . 23 . 5 3 Guns 28 | . 1 . 23 . 1 3 AOE 5 | . 1 . . . 4 . Classes Destroyed 10 | 2 1 . 6 . 1 . Worker 2 | . . . 2 . . . Tunneler 1 | 1 . . . . . . Hauler 5 | . . . 5 . . . Recycler 1 | 1 . . . . . . Mechanic 1 | . . . 1 . . . Watcher 3 | . . . 3 . . . Swarmer 6 | . . . 6 . . . Grunt 15 | . 2 . 10 . . 3 Sentry 7 | . . . 7 . . . Assembled 4 | . . . . . 4 . Best Kill Streak 5 | 2 1 . 5 . 4 3 Combat Bots Only 4 | . 1 . 3 . 4 3 Max Kills in Single Turn 2 | 1 1 . 2 . 1 1 Gunslinging 1 | . . . 1 . . . Exploded 1 | . 1 . . . 1 . Melee . | . . . . . . . Uniques/NPCs Destroyed 1 | . . . . . 1 . 8R-AWN (-9/Exiles) Combat | -11 -10 -10 -9 -9 -9 -8 -------- Run | Yrd Mat Min Mat Min Exi Min Hostile Shots Fired 239 | . 10 . 131 . 80 18 Missed 50 | . 2 . 29 . 18 1 Hits 189 | . 8 . 102 . 62 17 Projectile 189 | . 8 . 102 . 62 17 AOE 1 | . . . . . . 1 Critical Strikes 30 | . . . 4 . 22 4 Actively Blocked 4 | . . . 1 . 2 1 Damage Taken 2877 | . 218 . 1332 . 1064 263 Core 436 | . 36 . 258 . 105 37 Absorbed by Shields . | . . . . . . . Redirected to Shielding 37 | . . . 7 . 22 8 Core Remaining (%) 92 | 100 . 85 . . . . Volleys Fired 159 | 2 12 . 100 . 38 7 Largest 3 | 2 2 . 3 . 3 3 Hottest 69 | 40 40 . 69 . 69 69 Shots Fired 384 | 4 24 . 234 . 101 21 Gun 378 | 4 24 . 234 . 95 21 Cannon . | . . . . . . . Launcher 6 | . . . . . 6 . Special . | . . . . . . . Kinetic 378 | 4 24 . 234 . 95 21 Thermal . | . . . . . . . Explosive 6 | . . . . . 6 . Electromagnetic . | . . . . . . . Robot Hit Streak 13 | 3 7 . 13 . 12 8 Robot Miss Streak 6 | . 6 . 4 . 4 4 Penetration Max . | . . . . . . . Secondary Targets 3 | . . . 1 . . 2 Max Gunslinging Chain 1 | . . . 1 . . 1 Shots Hit Robots 247 | 3 13 . 149 . 69 13 Core Hits 94 | 3 5 . 59 . 20 7 Critical Kills 1 | . . . . . . 1 Critical Parts Destroyed . | . . . . . . . Critical Strikes 2 | . . . 1 . . 1 Destroy 2 | . . . 1 . . 1 Melee Attacks . | . . . . . . . Impact . | . . . . . . . Slashing . | . . . . . . . Piercing . | . . . . . . . Sneak Attacks . | . . . . . . . Combat Hostiles . | . . . . . . . Follow-up Attacks . | . . . . . . . Damage Inflicted 3768 | 43 333 . 1937 . 1257 198 Guns 3421 | 43 187 . 1937 . 1056 198 Cannons . | . . . . . . . Explosions 345 | . 144 . . . 201 . Melee . | . . . . . . . Ramming 2 | . 2 . . . . . Kinetic 3421 | 43 187 . 1937 . 1056 198 Thermal . | . . . . . . . Explosive 345 | . 144 . . . 201 . Electromagnetic . | . . . . . . . Impact . | . . . . . . . Slashing . | . . . . . . . Piercing . | . . . . . . . Highest Corruption 3 | . . . 3 3 3 3 Average Corruption 3 | . . . 3 3 3 3 Corruption Purged . | . . . . . . . Corruption Blocked . | . . . . . . . Effects 46 | . . . 5 2 38 1 Message Errors 11 | . . . 1 . 9 1 Matter Fused 12 | . . . 3 1 8 . Heat Flow Errors 6 | . . . . . 6 . Energy Discharges 5 | . . . . . 5 . Parts Fused 1 | . . . . . 1 . Data Loss (minor) 5 | . . . 1 . 4 . Data Loss (major) 3 | . . . . 1 2 . Misfires 1 | . . . . . 1 . Alerts 1 | . . . . . 1 . Weapon Failures 1 | . . . . . 1 . Overload Shots . | . . . . . . . Overflow Damage 4 | . . . . . 4 . Projectiles . | . . . . . . . Explosions 4 | . . . . . 4 . Melee . | . . . . . . . Knockbacks . | . . . . . . . Impact . | . . . . . . . Kinetic . | . . . . . . . Secondary . | . . . . . . . Self-Inflicted Damage 162 | . 112 . . . 50 . Shots 3 | . 1 . . . 2 . Rammed 1 | . 1 . . . . . Targets Rammed 1 | . 1 . . . . . Kicked . | . . . . . . . Crushed . | . . . . . . . Highest Temperature 238 | . 2 . 45 . 238 197 Average Temperature 45 | . 2 . 13 . 55 126 Received Heat Transfer 720 | . 57 . 492 . . 171 Siege Activations . | . . . . . . . Martial Activations . | . . . . . . . Shielding Activations . | . . . . . . . Robots Disrupted . | . . . . . . . Combat Hostiles . | . . . . . . . Robots Corrupted . | . . . . . . . Combat Hostiles . | . . . . . . . Parts Fried . | . . . . . . . Impact Corruptions . | . . . . . . . Robots Melted . | . . . . . . . Combat Hostiles . | . . . . . . . Parts Melted . | . . . . . . . Heat Transferred . | . . . . . . . Parts Sabotaged . | . . . . . . . Parts Stolen . | . . . . . . . Parts Stripped . | . . . . . . . Power Chain Reactions . | . . . . . . . Alert | -11 -10 -10 -9 -9 -9 -8 ------- Run | Yrd Mat Min Mat Min Exi Min Maximum Alert Level 1 | . . . 1 . . . Low Security (%) 95 | 100 100 100 94 100 . 100 Level 1 4 | . . . 5 . . . Level 2 . | . . . . . . . Level 3 . | . . . . . . . Level 4 . | . . . . . . . Level 5 . | . . . . . . . High Security . | . . . . . . . Max Security . | . . . . . . . Peak Influence 209 | 5 98 10 209 68 . 70 Initial 68 | . . 10 . 68 . . Average 60 | . 27 1 78 47 . 38 Influence Increases 993 | 10 149 . 764 . . 70 Destroy 0b10 Robot/C 560 | . 40 . 460 . . 60 Destroy 0b10 Robot/NC 65 | 10 . . 55 . . . Destroy Leader 176 | . 20 . 146 . . 10 Successful Hack 47 | . 5 . 42 . . . Disable Machine 45 | . 30 . 15 . . . Destroy Structure 25 | . 24 . 1 . . . Lose Combat Pursuer 75 | . 30 . 45 . . . Influence Decreases 933 | 10 120 29 588 148 28 10 Entered New Map 155 | . . 19 . 108 28 . Time Decay 728 | 10 120 10 538 40 . 10 Lost Part 50 | . . . 50 . . . Squads Dispatched 2 | . 1 . 1 . . . Investigation . | . . . . . . . Extermination . | . . . . . . . Reinforcement 2 | . 1 . 1 . . . Assault . | . . . . . . . Garrison . | . . . . . . . Intercept . | . . . . . . . Searches Triggered . | . . . . . . . Construction Impeded . | . . . . . . . Haulers Reinforced . | . . . . . . . Active Scanning Responses . | . . . . . . . Cargo Convoy Interrupts . | . . . . . . . Stealth | -11 -10 -10 -9 -9 -9 -8 --------- Run | Yrd Mat Min Mat Min Exi Min Distress Signals 3 | . . . 3 . . . Communications Jammed . | . . . . . . . Distress Signals . | . . . . . . . Times Spotted 54 | . 11 . 34 . 5 4 Peak Tracking Total 9 | . 3 . 4 . 9 4 Tactical Retreats 5 | . 2 . 3 . . . Traps | -11 -10 -10 -9 -9 -9 -8 ------- Run | Yrd Mat Min Mat Min Exi Min Traps Triggered . | . . . . . . . Indirectly . | . . . . . . . Trap Hack Attempts . | . . . . . . . Triggered . | . . . . . . . Disarmed . | . . . . . . . Reprogrammed . | . . . . . . . Reused . | . . . . . . . Traps Extracted . | . . . . . . . Installed . | . . . . . . . Triggered . | . . . . . . . Machines | -11 -10 -10 -9 -9 -9 -8 ---------- Run | Yrd Mat Min Mat Min Exi Min Machines Disabled 8 | . 2 . 1 . 5 . Max in Single Turn 2 | . 2 . 1 . 2 . Machines Repaired . | . . . . . . . Machines Dismantled . | . . . . . . . Machines Sabotaged . | . . . . . . . Overloaded Fab Kills . | . . . . . . . Hacking | -11 -10 -10 -9 -9 -9 -8 --------- Run | Yrd Mat Min Mat Min Exi Min Machines Accessed 11 | . 2 . 7 . 2 . Terminals 9 | . 2 . 7 . . . Fabricators . | . . . . . . . Repair Stations . | . . . . . . . Recycling Units . | . . . . . . . Scanalyzers . | . . . . . . . Garrison Access . | . . . . . . . Total Hacks 28 | . 5 . 21 . 2 . Successful 19 | . 2 . 15 . 2 . Failed 9 | . 3 . 6 . . . Catastrophic . | . . . . . . . Database Lockouts . | . . . . . . . Manual 27 | . 5 . 21 . 1 . Terminals 26 | . 5 . 21 . . . Fabricators . | . . . . . . . Repair Stations . | . . . . . . . Recycling Units . | . . . . . . . Scanalyzers . | . . . . . . . Garrison Access . | . . . . . . . Terminal Hacks 9 | . . . 7 . 2 . Record 1 | . . . . . 1 . Hauler Manifests 1 | . . . 1 . . . Registered Components 2 | . . . 2 . . . Zone Layout 4 | . . . 4 . . . Proto ID Catalog 1 | . . . . . 1 . Fabricator Hacks . | . . . . . . . Repair Station Hacks . | . . . . . . . Recycling Unit Hacks . | . . . . . . . Scanalyzer . | . . . . . . . Garrison Access Hacks . | . . . . . . . Unauthorized Hacks 10 | . 2 . 8 . . . Terminals 10 | . 2 . 8 . . . Botnet 7 | . 2 . 5 . . . Skim 3 | . . . 3 . . . Fabricators . | . . . . . . . Repair Stations . | . . . . . . . Recycling Units . | . . . . . . . Scanalyzers . | . . . . . . . Garrison Access . | . . . . . . . Data Cores Recovered . | . . . . . . . Used . | . . . . . . . Hacking Detections 6 | . 2 . 4 . . . Full Trace Events . | . . . . . . . Feedback Events . | . . . . . . . Feedback Blocked . | . . . . . . . Robot Schematics Acquired . | . . . . . . . Robots Built . | . . . . . . . Authchips . | . . . . . . . Time . | . . . . . . . Total Robot Build Rating . | . . . . . . . Part Schematics Acquired . | . . . . . . . Parts Built . | . . . . . . . Authchips . | . . . . . . . Time . | . . . . . . . Total Part Build Rating . | . . . . . . . Parts Repaired . | . . . . . . . Time . | . . . . . . . Parts Recycled . | . . . . . . . Recycled Matter . | . . . . . . . Retrieved Matter . | . . . . . . . Retrieved Components . | . . . . . . . Parts Scanalyzed . | . . . . . . . Part Schematics Acquired . | . . . . . . . Parts Damaged . | . . . . . . . Bothacking | -11 -10 -10 -9 -9 -9 -8 ------------ Run | Yrd Mat Min Mat Min Exi Min Used RIF Installer . | . . . . . . . Robots Hacked . | . . . . . . . Non-combat . | . . . . . . . Combat . | . . . . . . . Robot Hacks Applied . | . . . . . . . Relay Couplers Released . | . . . . . . . Fabnet Peak Effective % . | . . . . . . . Robots Rewired . | . . . . . . . Allies Hacked . | . . . . . . . Hacks Repelled . | . . . . . . . Allies | -11 -10 -10 -9 -9 -9 -8 -------- Run | Yrd Mat Min Mat Min Exi Min Total Allies . | . . . . . . . Largest Group . | . . . . . . . Highest-Rated Group . | . . . . . . . Highest-Rated Ally . | . . . . . . . Total Orders . | . . . . . . . Ally Attacks . | . . . . . . . Total Damage . | . . . . . . . Kills . | . . . . . . . Allies Corrupted . | . . . . . . . Allies Melted . | . . . . . . . Intel | -11 -10 -10 -9 -9 -9 -8 ------- Run | Yrd Mat Min Mat Min Exi Min Active Infowar (turns) 1686 | 45 426 156 1059 . . . Seismic 1686 | 45 426 156 1059 . . . Robot Analysis Total . | . . . . . . . Derelict Logs Recovered . | . . . . . . . Drone Launches . | . . . . . . . Drone Recoveries . | . . . . . . . Exploration | -11 -10 -10 -9 -9 -9 -8 ------------- Run | Yrd Mat Min Mat Min Exi Min Turns Passed 5089 | 118 426 156 1838 99 2428 24 Spaces Moved 2088 | 73 222 98 657 45 990 3 Core 24 | 24 . . . . . . Treads 2064 | 49 222 98 657 45 990 3 Legs . | . . . . . . . Wheels . | . . . . . . . Hover . | . . . . . . . Flight . | . . . . . . . Fastest Speed 50 | 50 160 160 160 225 225 225 Average Speed 209 | 123 160 160 219 225 225 225 Slowest Speed 320 | 160 160 160 320 225 225 225 Overloaded Moves . | . . . . . . . Propulsion Burnouts . | . . . . . . . Robots Hopped . | . . . . . . . Potential Cave-ins . | . . . . . . . Cave-ins Triggered . | . . . . . . . Exploration Rate (%) 30 | 6 49 18 52 18 70 3 Regions Visited 6 Branch Regions 4 Pre-discovered Areas 1 | . . . . . 1 . Known Exits Taken . | . . . . . . . Unknown Exits Taken 6 | 1 1 1 1 1 1 . Scrap Searched . | . . . . . . . Spaces Dug . | . . . . . . . Terrain Destroyed 57 | . 25 . . . 32 . Melee . | . . . . . . . Projectile . | . . . . . . . AOE 57 | . 25 . . . 32 . Terrain Rammed . | . . . . . . . Walls Destroyed . | . . . . . . . Machines Disabled . | . . . . . . . Actions | -11 -10 -10 -9 -9 -9 -8 --------- Run | Yrd Mat Min Mat Min Exi Min Total 2547 | 97 268 97 886 44 1145 10 Wait 78 | 6 29 . 26 . 17 . Move 2082 | 72 221 97 656 44 989 3 Hop . | . . . . . . . Pick Up 100 | 10 5 . 43 . 42 . Fast Attach 2 | . . . 2 . . . Attach 28 | 7 . . 14 . 7 . Detach . | . . . . . . . Swap 26 | . . . 13 . 13 . Drop 71 | . . . 32 . 39 . Fire 159 | 2 12 . 100 . 38 7 Melee . | . . . . . . . Ram . | . . . . . . . Kick . | . . . . . . . Crush 1 | . 1 . . . . . Escape Stasis . | . . . . . . . Rewire . | . . . . . . . Trap . | . . . . . . . Miscellaneous . | . . . . . . . Route ------- -11/Scrapyard -10/Materials (discovered 2 exits: *Mat / [*Min]) -10/Mines -9/Materials -9/Mines (discovered 3 exits: [*Mat] / *Exi / [*Zio]) -9/Exiles -8/Mines History --------- Turn | Location | Event 6 | -11/Scrapyard | Discovered new exit (range 16) 119 | -11/Scrapyard | Entered Materials 289 | -10/Materials | Discovered new exit (range 15) 310 | -10/Materials | Build established: Mutant 423 | -10/Materials | Discovered new exit (range 14) 545 | -10/Materials | Entered Mines 641 | -10/Mines | Discovered new exit (range 6) 701 | -10/Mines | Entered Materials 701 | -9/Materials | Evolved 2 slots: Utility x1, Weapon x1 1196 | -9/Materials | Build established: Scavenger-Tank 1561 | -9/Materials | Discovered new exit (range 10) 1643 | -9/Materials | Core integrity fell below 50% 1664 | -9/Materials | Lost 3 parts (1n2w) 2045 | -9/Materials | Build established: Tank 2539 | -9/Materials | Entered Mines 2540 | -9/Mines | A Derelict revealed a hidden shortcut to a safe place 2587 | -9/Mines | Discovered new exit (range 6) 2629 | -9/Mines | Deemed a non-threat by the Exiles lab entrance 2629 | -9/Mines | Discovered new exit (range 5) 2638 | -9/Mines | Entered Exiles 2694 | -9/Exiles | Met 8R-AWN 2730 | -9/Exiles | Met EX-HEX 2840 | -9/Exiles | Met EX-DEC 2876 | -9/Exiles | Learned location of Zion (-7) 2945 | -9/Exiles | Build established: Mutant 3451 | -9/Exiles | Met EX-BIN 3482 | -9/Exiles | Aligned with FarCom system 3484 | -9/Exiles | Given EX-Vault access code 3536 | -9/Exiles | Opened EX-Vault 3550 | -9/Exiles | Found Superbattery 3560 | -9/Exiles | Found Supersonic Drone Bay 3567 | -9/Exiles | Found Deploy-a-Sentry 3571 | -9/Exiles | Found Deploy-a-Sentry 3574 | -9/Exiles | Found Deploy-a-Sentry 3624 | -9/Exiles | Warned to stay clear of 0b10 Research branches 4633 | -9/Exiles | Attacked by the Exiles 4772 | -9/Exiles | Core integrity fell below 20% 4812 | -9/Exiles | Destroyed 8R-AWN 4832 | -9/Exiles | Found Prototype Protection 4841 | -9/Exiles | Found Prototype Ballistic Gun 4869 | -9/Exiles | Identified 8R-AWN's Boregun 4932 | -9/Exiles | Build established: Tank 4969 | -9/Exiles | Discovered new exit (range 14) 5066 | -9/Exiles | Stole three prototypes: Superbattery, Supersonic Drone Bay, Deploy-a-Sentry 5066 | -9/Exiles | Entered Mines 5090 | -8/Mines | 99-TNT came to Exiles' defense 5090 | -8/Mines | Destroyed by 99-TNT with 99-TNT's Nukerbomber Last Messages --------------- 04912_ Acquired Deploy-a-Sentry. 04913_ System corrupted: Matter fused (-8). 04942_ Acquired 10 matter. 04947_ System corrupted: Energy discharge (-24). 04969_ EXIT=FOUND 05010_ Extracted 165 matter. A strange signal echoes through the mines. LOCATION=UNKNOWN GOAL=ESCAPE 05067_ Critical hit (Burn: +37). 05068_ 2M4 WTX:254JRILPLQ7F7QIW6&I%ZL%BFU 05068_ Critical hit (Burn: +37). 05069_ G-47 Trooper suffers critical hit (Destroy). 05069_ G-47 Trooper destroyed. 05069_ Switching to secondary target: G-47 Trooper. 05074_ G-47 Trooper destroyed. 05074_ Switching to secondary target: G-50 Soldier. 05078_ Critical hit (Burn: +37). 05082_ G-50 Soldier destroyed. 05090_ 99-TNT: "I came as fast as I could... Wait, it was you!" Map ----- +----------------------------------------------------+ | | | | | | | | | | | | | | | | | | | | | | | ????????????????????????????????????? | | ????????????????????????????????????? | | ????????????????????????????????????? | | ????????????????????????????????????? | | ????????????????????????????????????? | | ????????????????????????????????????? | | ????????????????????????????????????? | | ????????????????????????????????????? | | ?????????????????????????###????????? | | ????????????????????????? #????????? | | ?????????????????????????# #????????? | | ????????????????????####?# #????????? | | ???????????????????##! [## ###??????? | | ??????????????????##=%=%*# ##?????? | | ??????????????????# = @d #?????? | | ??????????????????# *% #?????? | | ??????????????????## ## ##?????? | | ???????????????????####?## ##??????? | | ?????????????????????????####???????? | | ????????????????????????????????????? | | ????????????????????????????????????? | | ????????????????????????????????????? | | ????????????????????????????????????? | | ????????????????????????????????????? | | ????????????????????????????????????? | | ????????????????????????????????????? | | ????????????????????????????????????? | | ????????????????????????????????????? | | ????????????????????????????????????? | | ????????????????????????????????????? | | ????????????????????????????????????? | | ????????????????????????????????????? | | ????????????????????????????????????? | | ????????????????????????????????????? | | ????????????????????????????????????? | | ????????????????????????????????????? | | ????????????????????????????????????? | | ????????????????????????????????????? | | ????????????????????????????????????? | +----------------------------------------------------+ Best States ------------- Heat Dissipation 28 Energy Generation 10 Energy Capacity 250 Matter Stores 300 Matter Capacity 300 Sight Range 16 Terrain Scan Density 10 Armor Coverage 225 Core Shielding 20 Evasion (%) 50 Recoil Reduction 2 Item Schematics ----------------- None Robot Schematics ------------------ None Fabricated ------------ Nothing Repaired ---------- Nothing Alien Tech Used ----------------- None Achievements -------------- None Challenges ------------ None Game ------ Seed PlexusArchitectSink Manual? 0 Play Time 00:23:23 Cumulative 256.6 hours Start 2025.09.04 @ 13:21:55 End 2025.09.04 @ 14:00:26 Sessions 1 Manual Loads 0 Difficulty Rogue Special Mode None Game No. 379 Rogue 379 Adventurer 0 Explorer 0 Win Type - Total 5 Types 4/0/1/0/0/0/0/0/0/0 Lore% 83 Gallery% 79 Achievement% 61 Wizard Run 0 Options --------- Layout 0 ASCII 0 Keyboard 0 Movement Mouse Keybinds 0 Fullscreen 1 Font 18/SmallcapsGlow Map View 76x50 Zoom Use 0% Tactical HUD 1 Map Filters NONE Filters NONE Steam 1 RUN: 2a62bff8-d3bd-4521-a809-33e5a93a1080